bitfinex/quotes_BTCUSD_20241025
["timestamp","ask_amount","ask_price","bid_price","bid_amount"]
[1729885151589,0.34526002,67033.0,67018.0,0.596854]
[1729885151847,0.19475621,67033.0,67030.0,0.149186]
[1729885152313,0.19475621,67033.0,67017.0,0.3786455]
[1729885152550,0.0442524,67033.0,67032.0,0.37369089]
[1729885152776,0.0442524,67040.0,67029.0,0.15413661]
[1729885153007,0.0442524,67040.0,67020.0,0.15413661]
[1729885153008,0.04507497,67041.0,67040.0,0.149164]
[1729885153526,0.000822,67041.0,67040.0,0.149164]
[1729885154920,0.000822,67041.0,67040.0,0.30628365]
[1729885155163,0.000822,67041.0,67040.0,0.15214704]
[1729885155422,0.000822,67041.0,67040.0,0.30628365]
[1729885155868,0.000822,67041.0,67040.0,0.15214704]
[1729885157548,0.000822,67041.0,67040.0,0.30828365]
[1729885157822,0.000821,67045.0,67040.0,0.30828365]
[1729885157823,0.000821,67045.0,67044.0,0.30829161]
[1729885158068,1e-06,67046.0,67045.0,0.417853]
[1729885158317,1e-06,67046.0,67045.0,0.57035681]
[1729885164490,1e-06,67046.0,67045.0,0.56835681]
[1729885165636,1e-06,67046.0,67045.0,0.229053]
[1729885165861,1e-06,67046.0,67045.0,0.149153]
[1729885168297,0.21950989,67053.0,67035.0,0.15413661]
[1729885168533,0.15050381,67052.0,67050.0,0.149142]
[1729885168786,0.25,67051.0,67031.0,0.3786455]
[1729885169029,0.25,67051.0,67038.0,0.22450889]
[1729885169030,0.23650381,67050.0,67038.0,0.22450889]
[1729885169265,0.1688,67045.0,67039.0,0.29833]
[1729885169491,0.15050381,67044.0,67041.0,0.149161]
[1729885169720,0.15050381,67044.0,67032.0,0.74591]
[1729885169944,0.25,67043.0,67036.0,0.149173]
[1729885170210,0.15050381,67042.0,67041.0,0.149162]
[1729885170456,0.15050381,67042.0,67033.0,0.298358]
[1729885170693,0.15050381,67042.0,67041.0,0.149162]
[1729885171157,0.15050381,67042.0,67037.0,0.298342]
[1729885171382,0.15050381,67042.0,67038.0,0.298338]
[1729885171600,0.15050381,67042.0,67037.0,0.298342]
[1729885171837,0.15050381,67042.0,67041.0,0.149162]
[1729885172079,0.15050381,67042.0,67040.0,0.149163]
[1729885172313,0.15050381,67042.0,67037.0,0.298342]
[1729885172314,0.15050381,67042.0,67041.0,0.149162]
[1729885173387,0.15050381,67042.0,67037.0,0.298341]
[1729885173388,0.04418271,67048.0,67047.0,0.149149]
[1729885173618,0.3750127,67048.0,67047.0,0.149149]
[1729885173850,0.15050381,67048.0,67047.0,0.149149]
[1729885177259,0.1605,67055.0,67054.0,0.149133]
[1729885177501,0.0759,67057.0,67056.0,0.149129]
[1729885177734,0.0809,67057.0,67056.0,0.149129]
[1729885177965,0.0759,67057.0,67056.0,0.149129]
[1729885178195,0.0759,67057.0,67055.0,0.298261]
[1729885178196,0.25,67059.0,67058.0,0.149124]
[1729885178636,0.40050381,67059.0,67058.0,0.149124]
[1729885179331,0.40550381,67059.0,67058.0,0.149124]
[1729885179557,0.005,67055.0,67054.0,0.298267]
[1729885179781,0.15550381,67055.0,67054.0,0.149133]
[1729885180007,0.15050381,67055.0,67054.0,0.149133]
[1729885182556,0.04419207,67063.0,67062.0,0.149115]
[1729885182779,0.00223692,67064.0,67063.0,0.149113]
[1729885183992,0.00223692,67064.0,67055.0,0.45239561]
[1729885183993,0.15274073,67064.0,67060.0,0.29824]
[1729885184225,0.00223692,67064.0,67063.0,0.149113]
[1729885184465,0.00223692,67064.0,67062.0,0.29823]
[1729885184688,0.00223692,67064.0,67063.0,0.149113]
[1729885186352,0.159103,67068.0,67063.0,0.149113]
[1729885186795,0.149108,67066.0,67062.0,0.149115]
[1729885187018,0.298209,67067.0,67062.0,0.149115]
[1729885187019,0.149106,67067.0,67062.0,0.149115]
[1729885187244,0.149106,67067.0,67040.0,0.001644]
[1729885187245,0.25,67059.0,67058.0,0.149124]
[1729885187493,0.15050381,67059.0,67058.0,0.149124]
[1729885190111,0.15050381,67059.0,67056.0,0.149127]
[1729885190333,0.15050381,67058.0,67057.0,0.447378]
[1729885193685,0.15050381,67058.0,67048.0,0.52279989]
[1729885193925,0.15050381,67058.0,67048.0,0.22450889]
[1729885194157,0.15050381,67058.0,67057.0,0.149126]
[1729885194394,0.0443231,67060.0,67059.0,0.149122]
[1729885194634,0.15050381,67060.0,67059.0,0.149122]
[1729885194867,0.15050381,67060.0,67056.0,0.298257]
[1729885195087,0.15050381,67059.0,67058.0,0.149124]
[1729885195316,0.15050381,67059.0,67057.0,0.149126]
[1729885195536,0.15050381,67059.0,67056.0,0.298257]
[1729885195754,0.15050381,67059.0,67058.0,0.149124]
[1729885196469,0.19482691,67059.0,67058.0,0.149124]
[1729885197349,0.15050381,67059.0,67058.0,0.149124]
[1729885198439,0.21698847,67059.0,67058.0,0.149124]
[1729885199338,0.15050381,67059.0,67058.0,0.149124]
[1729885200275,0.15050381,67059.0,67058.0,0.150766]
[1729885200503,0.3143007,67059.0,67058.0,0.150766]
[1729885200953,0.16379689,67059.0,67058.0,0.150766]
[1729885201210,0.000821,67064.0,67061.0,0.149117]
[1729885201426,0.31431306,67063.0,67061.0,0.149117]
[1729885201657,0.2747453,67062.0,67061.0,0.149117]
[1729885201898,0.42524911,67062.0,67061.0,0.149117]
[1729885202349,0.42525153,67062.0,67061.0,0.149117]
[1729885203776,0.31431306,67062.0,67061.0,0.149117]
[1729885204236,0.31431306,67062.0,67059.0,0.298241]
[1729885204462,0.4252722,67061.0,67060.0,0.14912]
[1729885204687,0.31432471,67061.0,67060.0,0.14912]
[1729885205151,0.42528414,67061.0,67058.0,0.001642]
[1729885205378,0.47450889,67059.0,67058.0,0.001642]
[1729885205597,0.71844671,67059.0,67058.0,0.001642]
[1729885205822,0.61525991,67059.0,67045.0,0.298302]
[1729885206045,0.26011059,67053.0,67051.0,0.22450889]
[1729885206284,0.4252993,67052.0,67046.0,0.149151]
[1729885206505,0.04439434,67047.0,67046.0,0.298302]
[1729885206736,0.04439434,67047.0,67046.0,0.447453]
[1729885206949,0.04439434,67048.0,67047.0,0.149149]
[1729885207193,0.04439434,67053.0,67052.0,0.149137]
[1729885207413,0.04439434,67055.0,67054.0,0.149133]
[1729885207897,0.06659151,67055.0,67052.0,0.15413661]
[1729885208117,0.06660968,67055.0,67053.0,0.298267]
[1729885208357,0.06661872,67055.0,67054.0,0.298266]
[1729885208580,0.06661872,67055.0,67051.0,0.298276]
[1729885208581,0.08878869,67055.0,67051.0,0.298276]
[1729885208838,0.06661699,67053.0,67051.0,0.298276]
[1729885209063,0.25,67051.0,67045.0,0.149153]
[1729885209316,0.06661494,67049.0,67047.0,0.149147]
[1729885209541,0.21711875,67048.0,67047.0,0.149147]
[1729885209756,0.21712589,67048.0,67041.0,0.001642]
[1729885209980,0.04441463,67046.0,67042.0,0.29832]
[1729885210207,0.04441463,67046.0,67045.0,0.149153]
[1729885210440,0.06662208,67047.0,67046.0,0.149151]
[1729885211123,0.15050381,67048.0,67047.0,0.149149]
[1729885211124,0.23933325,67048.0,67047.0,0.149149]
[1729885211636,0.40331991,67048.0,67047.0,0.149149]
[1729885213418,0.40331991,67048.0,67047.0,0.150791]
[1729885214502,0.40331991,67048.0,67047.0,0.001642]
[1729885214933,0.69420875,67048.0,67047.0,0.001642]
[1729885215151,0.67876041,67048.0,67047.0,0.001642]
[1729885215355,0.67874316,67048.0,67047.0,0.001642]
[1729885215600,0.83594316,67048.0,67047.0,0.001642]
[1729885216020,0.40416,67042.0,67041.0,0.001642]
[1729885216236,0.76462055,67042.0,67041.0,0.001642]
[1729885217355,0.71865047,67042.0,67041.0,0.001642]
[1729885217577,0.85186971,67042.0,67041.0,0.001642]
[1729885217818,0.71865047,67042.0,67041.0,0.001642]
[1729885223351,0.95958411,67042.0,67041.0,0.001642]
[1729885223612,0.88278708,67042.0,67041.0,0.001642]
[1729885223822,1.01600632,67042.0,67041.0,0.001642]
[1729885224046,0.88278708,67042.0,67041.0,0.001642]
[1729885224335,1.02243726,67042.0,67041.0,0.001642]
[1729885224803,1.17294107,67042.0,67041.0,0.001642]
[1729885225459,1.03983068,67042.0,67041.0,0.001642]
[1729885225911,1.03983068,67042.0,67019.0,0.29842]
[1729885225912,0.164162,67041.0,67040.0,0.00153882]
[1729885226157,0.60610073,67041.0,67040.0,0.00153882]
[1729885226377,0.75660454,67041.0,67040.0,0.00153882]
[1729885227294,0.91630454,67041.0,67040.0,0.00153882]
[1729885228401,0.87045628,67041.0,67040.0,0.00153882]
[1729885230184,1.00340981,67041.0,67040.0,0.00153882]
[1729885230407,0.85424781,67041.0,67040.0,0.00153882]
[1729885231130,0.462444,67041.0,67040.0,0.00153882]
[1729885231134,0.40313738,67041.0,67040.0,0.15070282]
[1729885231357,0.15050381,67041.0,67040.0,0.00153882]
[1729885231595,0.08864691,67049.0,67040.0,0.00153882]
[1729885231596,0.05100651,67050.0,67044.0,0.149154]
[1729885231835,0.05100651,67050.0,67040.0,0.00153882]
[1729885231836,0.00667946,67050.0,67041.0,0.16]
[1729885232059,0.15050381,67057.0,67049.0,0.0825]
[1729885232060,0.19483086,67057.0,67049.0,0.0825]
[1729885232301,0.22450889,67059.0,67054.0,0.149133]
[1729885232538,0.22450889,67059.0,67052.0,0.15413661]
[1729885233006,0.04432705,67063.0,67049.0,0.0825]
[1729885233234,0.15050381,67062.0,67052.0,0.149136]
[1729885233711,0.15050381,67062.0,67049.0,0.30700889]
[1729885234192,0.15050381,67062.0,67056.0,0.15413661]
[1729885234417,0.000821,67064.0,67063.0,0.149113]
[1729885235372,0.000821,67064.0,67062.0,0.298231]
[1729885235373,0.000821,67064.0,67061.0,0.30325361]
[1729885235595,0.000821,67064.0,67062.0,0.149114]
[1729885235833,0.000821,67064.0,67063.0,0.149113]
[1729885238250,0.000821,67064.0,67062.0,0.149113]
[1729885238931,0.000821,67064.0,67063.0,0.149113]
[1729885239594,0.000821,67064.0,67060.0,0.45237361]
[1729885239816,0.000821,67064.0,67063.0,0.225413]
[1729885240040,0.000821,67064.0,67063.0,0.22839488]
[1729885240269,0.000821,67064.0,67063.0,0.23039488]
[1729885240492,0.000821,67064.0,67063.0,0.225413]
[1729885248538,0.00662749,67079.0,67063.0,0.225413]
[1729885248539,0.017549,67088.0,67080.0,0.149075]
[1729885248773,0.017549,67088.0,67080.0,0.45734822]
[1729885249025,0.00169,67082.0,67080.0,0.53844822]
[1729885250835,0.00169,67082.0,67080.0,0.38431161]
[1729885260357,0.00169,67082.0,67080.0,0.149075]
[1729885260623,0.00169,67082.0,67071.0,0.29819]
[1729885260849,0.15219381,67081.0,67071.0,0.15413661]
[1729885261069,0.15050381,67080.0,67071.0,0.22450889]
[1729885261272,0.15394573,67080.0,67071.0,0.22450889]
[1729885261507,0.15394573,67080.0,67066.0,0.15413661]
[1729885261724,0.22450889,67079.0,67065.0,0.149108]
[1729885261943,0.15050381,67078.0,67064.0,0.14911]
[1729885262164,0.15462458,67078.0,67064.0,0.14911]
[1729885262384,0.15462458,67078.0,67060.0,0.23133661]
[1729885262385,0.22450889,67076.0,67062.0,0.149114]
[1729885262601,0.15050381,67075.0,67064.0,0.14911]
[1729885262817,0.15050381,67075.0,67064.0,0.15413661]
[1729885263034,0.15050381,67075.0,67063.0,0.22450889]
[1729885263035,0.00412077,67074.0,67063.0,0.22450889]
[1729885263253,0.15050381,67073.0,67064.0,0.14911]
[1729885263470,0.15050381,67073.0,67063.0,0.22450889]
[1729885263694,0.0774,67072.0,67056.0,0.22450889]
[1729885263906,0.15050381,67071.0,67057.0,0.30326161]
[1729885264119,0.15050381,67071.0,67058.0,0.149123]
[1729885264349,0.00412077,67070.0,67058.0,0.149123]
[1729885264559,0.3750127,67069.0,67058.0,0.149123]
[1729885264782,0.3750127,67069.0,67056.0,0.37363589]
[1729885265209,0.00412077,67068.0,67059.0,0.149122]
[1729885265396,0.15050381,67067.0,67059.0,0.149122]
[1729885265701,0.15050381,67067.0,67057.0,0.149125]
[1729885265927,0.22450889,67061.0,67047.0,0.299942]
[1729885266138,0.15050381,67060.0,67050.0,0.37364989]
[1729885266362,0.22450889,67059.0,67047.0,0.001644]
[1729885266580,0.15413661,67052.0,67047.0,0.001644]
[1729885266794,0.15550381,67051.0,67047.0,0.001644]
[1729885267038,0.005,67048.0,67047.0,0.001644]
[1729885267284,0.15550381,67048.0,67047.0,0.001644]
[1729885267697,0.15957035,67048.0,67047.0,0.001644]
[1729885269252,0.15457035,67048.0,67047.0,0.001644]
[1729885269496,0.00406654,67048.0,67047.0,0.15578061]
[1729885269712,0.22450889,67061.0,67047.0,0.30492961]
[1729885269942,0.22450889,67054.0,67047.0,0.30492961]
[1729885270157,0.15050381,67053.0,67047.0,0.15578061]
[1729885270367,0.15050381,67053.0,67047.0,0.001644]
[1729885274251,0.23923661,67048.0,67047.0,0.001644]
[1729885274464,0.38974042,67048.0,67047.0,0.001644]
[1729885275570,0.23560381,67048.0,67047.0,0.001644]
[1729885276038,0.15721321,67048.0,67047.0,0.001644]
[1729885276262,0.15050381,67048.0,67047.0,0.001644]
[1729885277336,0.16605419,67048.0,67047.0,0.001644]
[1729885277558,0.17105419,67048.0,67047.0,0.001644]
[1729885277766,0.15550381,67048.0,67047.0,0.001644]
[1729885280464,0.15050381,67048.0,67047.0,0.001644]
[1729885280886,0.15050381,67048.0,67047.0,0.15578061]
[1729885281337,0.15550381,67048.0,67047.0,0.001644]
[1729885282613,0.15050381,67048.0,67047.0,0.001644]
[1729885286050,0.22450889,67060.0,67047.0,0.001644]
[1729885286224,0.15050381,67059.0,67052.0,0.15413661]
[1729885286824,0.0461803,67058.0,67052.0,0.15413661]
[1729885287032,0.15050381,67057.0,67052.0,0.15413661]
[1729885287229,0.0461803,67056.0,67052.0,0.15413661]
[1729885287438,0.00223697,67061.0,67053.0,0.149133]
[1729885287659,0.00223697,67061.0,67049.0,0.22450889]
[1729885287890,0.00223697,67061.0,67060.0,0.14912]
[1729885288113,0.22450889,67066.0,67060.0,0.298238]
[1729885288310,0.12117718,67068.0,67056.0,0.1609]
[1729885288520,0.12117718,67068.0,67067.0,0.149104]
[1729885288775,0.12117718,67068.0,67065.0,0.298213]
[1729885289052,0.000822,67070.0,67066.0,0.0828]
[1729885289252,0.000822,67070.0,67067.0,0.15413661]
[1729885295681,0.000822,67070.0,67067.0,0.15578061]
[1729885299745,0.04524928,67070.0,67067.0,0.15578061]
[1729885300408,0.000822,67070.0,67067.0,0.15578061]
[1729885301172,0.04524928,67070.0,67067.0,0.15578061]
[1729885302480,0.04542296,67070.0,67067.0,0.15578061]
[1729885302899,0.22450889,67069.0,67067.0,0.15578061]
[1729885303175,0.21740525,67069.0,67067.0,0.001644]
[1729885303414,0.23970573,67069.0,67067.0,0.001644]
[1729885303655,0.16464226,67068.0,67067.0,0.001644]
[1729885303868,0.40434799,67068.0,67067.0,0.001644]
[1729885304121,0.31514607,67068.0,67067.0,0.001644]
[1729885306019,0.42664308,67068.0,67067.0,0.001644]
[1729885306655,0.31514607,67068.0,67067.0,0.001644]
[1729885307154,0.42661812,67068.0,67067.0,0.001644]
[1729885307357,0.31514607,67068.0,67067.0,0.001644]
[1729885311100,0.32014607,67068.0,67067.0,0.001644]
[1729885311358,0.51707405,67068.0,67067.0,0.001644]
[1729885311579,0.57317999,67068.0,67067.0,0.001644]
[1729885311860,0.50525201,67068.0,67067.0,0.001644]
[1729885314486,0.46567388,67068.0,67067.0,0.001644]
[1729885315431,0.74174518,67068.0,67067.0,0.001644]
[1729885315678,0.74174518,67068.0,67047.0,0.001644]
[1729885315679,0.0809,67054.0,67047.0,0.001644]
[1729885315933,0.005,67050.0,67047.0,0.001644]
[1729885316179,0.15550381,67050.0,67047.0,0.001644]
[1729885316400,0.005,67049.0,67047.0,0.001644]
[1729885316639,0.31514607,67048.0,67047.0,0.001644]
[1729885317883,0.47929207,67048.0,67047.0,0.001644]
[1729885318167,0.72929207,67048.0,67047.0,0.001644]
[1729885318368,0.80649207,67048.0,67047.0,0.001644]
[1729885318597,0.93996795,67048.0,67047.0,0.001644]
[1729885319056,0.94668588,67048.0,67047.0,0.001644]
[1729885319633,0.96371381,67048.0,67047.0,0.001644]
[1729885320252,0.79907155,67048.0,67047.0,0.001644]
[1729885320476,1.14626765,67048.0,67047.0,0.001644]
[1729885320705,1.14626585,67048.0,67047.0,0.001644]
[1729885320916,1.29617809,67048.0,67047.0,0.001644]
[1729885321541,1.14626585,67048.0,67047.0,0.001644]
[1729885322524,1.10033806,67048.0,67047.0,0.001644]
[1729885323253,1.23336702,67048.0,67047.0,0.001644]
[1729885323731,0.93637155,67048.0,67047.0,0.001644]
[1729885323965,0.93637155,67048.0,67040.0,0.00153882]
[1729885323966,0.164162,67041.0,67040.0,0.00153882]
[1729885324215,0.47835389,67041.0,67040.0,0.00153882]
[1729885324445,0.56700486,67041.0,67040.0,0.00153882]
[1729885325365,0.47822687,67041.0,67040.0,0.00153882]
[1729885325609,0.005,67032.0,67025.0,0.3786455]
[1729885325830,0.15050381,67031.0,67025.0,0.3786455]
[1729885326048,0.15050381,67031.0,67025.0,0.15413661]
[1729885328127,0.15050381,67031.0,67029.0,0.15413661]
[1729885328342,0.04430876,67039.0,67029.0,0.23603661]
[1729885328343,0.22450889,67039.0,67029.0,0.23603661]
[1729885328563,0.15050381,67038.0,67036.0,0.15413661]
[1729885329938,0.15050381,67038.0,67037.0,0.1405]
[1729885330405,0.00223754,67046.0,67037.0,0.1405]
[1729885330633,0.15050381,67045.0,67044.0,0.15413661]
[1729885331139,0.15050381,67045.0,67037.0,0.001644]
[1729885331368,0.005,67043.0,67037.0,0.001644]
[1729885331618,0.005,67039.0,67037.0,0.001644]
[1729885331840,0.15550381,67038.0,67037.0,0.001644]
[1729885332100,0.31467281,67038.0,67037.0,0.001644]
[1729885332548,0.45064933,67038.0,67037.0,0.001644]
[1729885333003,0.49488737,67038.0,67037.0,0.001644]
[1729885333257,0.51711248,67038.0,67037.0,0.001644]
[1729885333771,0.005,67029.0,67027.0,0.22450889]
[1729885333996,0.15050381,67028.0,67027.0,0.22450889]
[1729885334226,0.15050381,67028.0,67016.0,0.23493661]
[1729885334461,0.23680919,67028.0,67016.0,0.23493661]
[1729885334696,0.23680919,67028.0,67024.0,0.15413661]
[1729885334697,0.15050381,67028.0,67024.0,0.15413661]
[1729885334921,0.15050381,67028.0,67020.0,0.15413661]
[1729885339400,0.15050381,67028.0,67024.0,0.15413661]
[1729885342190,0.12636051,67046.0,67027.0,0.22450889]
[1729885342191,0.00675505,67041.0,67027.0,0.22450889]
[1729885342413,0.22450889,67039.0,67029.0,0.0816]
[1729885342606,0.22450889,67039.0,67030.0,0.300373]
[1729885342889,0.22450889,67039.0,67032.0,0.298364]
[1729885343107,0.15050381,67045.0,67033.0,0.149179]
[1729885343328,0.15050381,67045.0,67030.0,0.300373]
[1729885343329,0.15050381,67045.0,67038.0,0.15413661]
[1729885343557,0.15050381,67045.0,67042.0,0.15413661]
[1729885344035,0.15050381,67045.0,67037.0,0.15413661]
[1729885346627,0.15050381,67045.0,67037.0,0.15413661]
[1729885348497,0.159138,67052.0,67027.0,0.22450889]
[1729885348498,0.22450889,67055.0,67042.0,0.002]
[1729885348784,0.15050381,67054.0,67053.0,0.15413661]
[1729885348999,0.22450889,67055.0,67054.0,0.0815]
[1729885349226,0.000822,67067.0,67055.0,0.002]
[1729885349480,0.15050381,67063.0,67062.0,0.15413661]
[1729885349722,0.15050381,67063.0,67058.0,0.15413661]
[1729885352175,0.15050381,67063.0,67062.0,0.15413661]
[1729885355766,0.15050381,67063.0,67054.0,0.23563661]
[1729885356265,0.149123,67059.0,67047.0,0.23223661]
[1729885356511,0.15050381,67058.0,67049.0,0.22450889]
[1729885356748,0.15050381,67058.0,67051.0,0.15413661]
[1729885357663,0.15050381,67058.0,67055.0,0.15413661]
[1729885360038,0.15050381,67058.0,67051.0,0.15413661]
[1729885362426,0.15050381,67058.0,67057.0,0.15413661]
[1729885363816,0.15050381,67058.0,67053.0,0.15413661]
[1729885366168,0.15050381,67058.0,67047.0,0.0781]
[1729885366169,0.15050381,67058.0,67049.0,0.15413661]
[1729885371217,0.15132581,67058.0,67049.0,0.15413661]
[1729885373340,0.15132581,67058.0,67044.0,0.15413661]
[1729885373341,0.22450889,67056.0,67044.0,0.15413661]
[1729885373582,0.15050381,67055.0,67044.0,0.15413661]
[1729885374317,0.15050381,67055.0,67048.0,0.15413661]
[1729885378032,0.15050381,67055.0,67049.0,0.22450889]
[1729885378311,0.000822,67058.0,67055.0,0.14913]
[1729885378537,0.000822,67058.0,67057.0,0.15413661]
[1729885381001,0.000822,67058.0,67057.0,0.15613661]
[1729885381438,0.000822,67058.0,67057.0,0.15413661]
[1729885382623,0.000822,67058.0,67057.0,0.44044472]
[1729885382875,0.000822,67058.0,67057.0,0.43946261]
[1729885383113,0.000822,67058.0,67057.0,0.28833661]
[1729885383608,0.000822,67058.0,67057.0,0.15413661]
[1729885383857,0.000822,67058.0,67053.0,0.15413661]
[1729885384096,0.000822,67058.0,67049.0,0.0757]
[1729885384097,0.15050381,67057.0,67049.0,0.0757]
[1729885384339,0.15050381,67057.0,67052.0,0.15413661]
[1729885384563,0.15050381,67057.0,67056.0,0.15413661]
[1729885385075,0.045255,67058.0,67056.0,0.15413661]
[1729885385319,0.000822,67058.0,67056.0,0.15413661]
[1729885385563,0.000822,67058.0,67052.0,0.15413661]
[1729885385564,0.15050381,67057.0,67052.0,0.15413661]
[1729885386042,0.19502679,67057.0,67052.0,0.15413661]
[1729885386269,0.04452298,67055.0,67052.0,0.15413661]
[1729885386493,0.04452298,67055.0,67054.0,0.15413661]
[1729885386494,0.19502679,67055.0,67054.0,0.15413661]
[1729885386740,0.15050381,67055.0,67054.0,0.15413661]
[1729885388405,0.04452298,67056.0,67054.0,0.15413661]
[1729885388685,0.04452298,67057.0,67054.0,0.15413661]
[1729885388923,0.04452298,67057.0,67055.0,0.002]
[1729885390284,0.0445849,67057.0,67055.0,0.002]
[1729885390779,0.000822,67058.0,67055.0,0.002]
[1729885390780,0.0454069,67058.0,67055.0,0.002]
[1729885391012,0.0454069,67058.0,67054.0,0.15413661]
[1729885391289,0.0445849,67056.0,67054.0,0.15413661]
[1729885393411,0.0445849,67055.0,67054.0,0.15413661]
[1729885393867,0.0445849,67055.0,67040.0,0.29463661]
[1729885393868,0.15050381,67055.0,67048.0,0.15413661]
[1729885394094,0.04460389,67051.0,67048.0,0.15413661]
[1729885394359,0.04460389,67051.0,67044.0,0.22450889]
[1729885394360,0.04460389,67049.0,67044.0,0.22450889]
[1729885394601,0.04460389,67048.0,67045.0,0.15413661]
[1729885394843,0.04460389,67046.0,67045.0,0.15413661]
[1729885395317,0.06690584,67047.0,67045.0,0.15413661]
[1729885396233,0.04461226,67046.0,67045.0,0.15413661]
[1729885398427,0.04461226,67047.0,67045.0,0.15413661]
[1729885398901,0.04461226,67046.0,67045.0,0.15413661]
[1729885401770,0.44905535,67038.0,67037.0,0.001644]
[1729885402050,0.11148985,67041.0,67039.0,0.005]
[1729885402278,0.15059523,67057.0,67038.0,0.0821]
[1729885402279,0.22450889,67048.0,67047.0,0.151149]
[1729885402498,0.000822,67058.0,67053.0,0.151134]
[1729885402737,0.000822,67058.0,67057.0,0.15413661]
[1729885405133,0.000822,67058.0,67057.0,0.46238133]
[1729885405386,0.000822,67063.0,67062.0,0.38325161]
[1729885405609,0.000822,67063.0,67062.0,0.51915161]
[1729885411172,0.000822,67063.0,67062.0,0.37003661]
[1729885411870,0.000822,67063.0,67058.0,0.15413661]
[1729885412102,0.000822,67063.0,67062.0,0.15413661]
[1729885413039,0.15132581,67063.0,67062.0,0.15413661]
[1729885414187,0.15132581,67063.0,67053.0,0.00298234]
[1729885414188,0.149121,67060.0,67053.0,0.15413661]
[1729885414402,0.15050381,67059.0,67053.0,0.15413661]
[1729885414647,0.04459016,67058.0,67048.0,0.15413661]
[1729885414862,0.19509397,67057.0,67048.0,0.15413661]
[1729885415112,0.34940824,67059.0,67035.0,0.22450889]
[1729885415113,0.26909905,67052.0,67035.0,0.22450889]
[1729885415344,0.149159,67043.0,67035.0,0.22450889]
[1729885415566,0.15050381,67042.0,67036.0,0.15413661]
[1729885416003,0.15050381,67042.0,67040.0,0.15413661]
[1729885417997,0.15050381,67042.0,67036.0,0.15413661]
[1729885418215,0.15050381,67042.0,67040.0,0.15413661]
[1729885420501,0.15050381,67042.0,67041.0,0.22450889]
[1729885420729,0.08924817,67048.0,67040.0,0.15413661]
[1729885420730,0.04459016,67047.0,67040.0,0.15413661]
[1729885420948,0.15050381,67046.0,67044.0,0.15413661]
[1729885421604,0.19508352,67046.0,67044.0,0.15413661]
[1729885421831,0.15050381,67046.0,67044.0,0.15413661]
[1729885423665,0.22450889,67045.0,67040.0,0.15413661]
[1729885423880,0.15050381,67044.0,67040.0,0.15413661]
[1729885424096,0.15050381,67044.0,67037.0,0.001644]
[1729885424341,0.22450889,67041.0,67037.0,0.001644]
[1729885424559,0.149169,67038.0,67037.0,0.001644]
[1729885424778,0.30467281,67038.0,67037.0,0.001644]
[1729885425482,0.34919714,67038.0,67037.0,0.001644]
[1729885425711,0.15050381,67038.0,67037.0,0.001644]
[1729885426436,0.22450889,67043.0,67038.0,0.002]
[1729885426653,0.15050381,67042.0,67041.0,0.15413661]
[1729885429484,0.15050381,67042.0,67041.0,0.15613661]
[1729885430615,0.15050381,67042.0,67041.0,0.15413661]
[1729885430838,0.15050381,67042.0,67041.0,0.15613661]
[1729885431082,0.15050381,67042.0,67041.0,0.15413661]
[1729885432007,0.15050381,67042.0,67041.0,0.15613661]
[1729885433400,0.15050381,67042.0,67041.0,0.15413661]
[1729885434794,0.04452433,67051.0,67045.0,0.002]
[1729885435014,0.15050381,67050.0,67049.0,0.15413661]
[1729885435955,0.15050381,67050.0,67049.0,0.15613661]
[1729885436427,0.15050381,67050.0,67049.0,0.15413661]
[1729885439011,0.15050381,67050.0,67045.0,0.15413661]
[1729885441108,0.22450889,67046.0,67038.0,0.15413661]
[1729885441351,0.15050381,67045.0,67038.0,0.15413661]
[1729885442031,0.15050381,67045.0,67037.0,0.001644]
[1729885442032,0.22450889,67044.0,67037.0,0.001644]
[1729885442261,0.15050381,67043.0,67037.0,0.001644]
[1729885442985,0.15050381,67043.0,67038.0,0.15413661]
[1729885444104,0.4,67040.0,67039.0,0.22450889]
[1729885444342,0.55050381,67040.0,67039.0,0.15413661]
[1729885445029,0.55050381,67040.0,67037.0,0.001644]
[1729885445259,0.15050381,67039.0,67037.0,0.001644]
[1729885447100,0.15050381,67039.0,67038.0,0.002]
[1729885447334,0.15050381,67039.0,67037.0,0.001644]
[1729885447775,0.4,67045.0,67037.0,0.001644]
[1729885447992,0.4,67045.0,67044.0,0.15413661]
[1729885448515,0.4,67045.0,67044.0,0.15613661]
[1729885448736,0.4,67045.0,67044.0,0.30529161]
[1729885448959,0.4,67045.0,67044.0,0.15613661]
[1729885449193,0.22450889,67052.0,67044.0,0.15413661]
[1729885449431,0.22450889,67052.0,67038.0,0.15413661]
[1729885449432,0.3750127,67045.0,67038.0,0.15413661]
[1729885449676,0.15050381,67044.0,67038.0,0.15413661]
[1729885449913,0.2707696,67043.0,67028.0,0.22450889]
[1729885450169,0.4051334,67038.0,67022.0,0.15413661]
[1729885450432,0.7268321,67038.0,67021.0,0.22450889]
[1729885450669,0.149189,67029.0,67022.0,0.15413661]
[1729885450893,0.15050381,67028.0,67022.0,0.15413661]
[1729885451131,0.29969481,67028.0,67022.0,0.15413661]
[1729885451365,0.15050381,67028.0,67022.0,0.15413661]
[1729885452285,0.4,67026.0,67022.0,0.15413661]
[1729885452507,0.15050381,67025.0,67022.0,0.15413661]
[1729885453889,0.4,67026.0,67023.0,0.002]
[1729885454130,0.149177,67035.0,67022.0,0.15413661]
[1729885454363,0.22450889,67030.0,67023.0,0.002]
[1729885454581,0.15050381,67029.0,67023.0,0.002]
[1729885454804,0.15050381,67029.0,67028.0,0.15413661]
[1729885455469,0.04455864,67035.0,67028.0,0.22953661]
[1729885455712,0.15050381,67034.0,67033.0,0.15413661]
[1729885458477,0.19506245,67034.0,67033.0,0.15413661]
[1729885459126,0.15050381,67034.0,67033.0,0.15413661]
[1729885459607,0.298364,67032.0,67025.0,0.15413661]
[1729885459882,0.21619633,67028.0,67021.0,0.15413661]
[1729885460116,0.04466988,67026.0,67021.0,0.15413661]
[1729885460350,0.19517369,67025.0,67020.0,0.001644]
[1729885460595,0.19517801,67025.0,67024.0,0.15413661]
[1729885461051,0.0446742,67025.0,67024.0,0.15413661]
[1729885461281,0.0446742,67033.0,67026.0,0.002]
[1729885461511,0.4,67034.0,67024.0,0.1402]
[1729885461512,0.22450889,67031.0,67024.0,0.1402]
[1729885461753,0.4,67034.0,67024.0,0.1402]
[1729885462194,0.29152019,67038.0,67024.0,0.1402]
[1729885462195,0.0446742,67037.0,67030.0,0.002]
[1729885462448,0.0446742,67037.0,67033.0,0.15413661]